fUSD/lending_fUSD_20250402
["ID","MTS","AMOUNT","RATE_DAILY","PERIOD"]
[357021936,1743583755174,-152.62,0.000488,45]
[357021937,1743583755198,-152.62,0.000488,45]
[357021938,1743583755219,-156.91,0.00048877,2]
[357021939,1743583755239,-367.28825084,0.00049,120]
[357021940,1743583755261,-371.87,0.00049305,2]
[357021941,1743583755282,-159.505278,0.00049315,120]
[357021942,1743583755302,-161.363632,0.00049315,120]
[357021943,1743583755323,-1579.712316,0.00049315,120]
[357021944,1743583755344,-154.922927,0.00049315,120]
[357021945,1743583755365,-500.0,0.00049315,120]
[357021946,1743583755385,-500.0,0.00049315,120]
[357021947,1743583755406,-500.0,0.00049315,120]
[357021948,1743583755426,-500.0,0.00049315,120]
[357021949,1743583755452,-522.80972543,0.00049315,120]
[357021950,1743583755479,-505.83461556,0.00049315,120]
[357021951,1743583755501,-500.0,0.00049315,120]
[357021952,1743583755521,-505.89084629,0.00049315,120]
[357021953,1743583755544,-500.0,0.00049315,120]
[357021954,1743583755565,-500.0,0.00049315,120]
[357021955,1743583755587,-500.0,0.00049315,120]
[357021956,1743583755607,-322.18355625,0.00049315,60]
[357021957,1743583755629,-500.0,0.00049315,120]
[357021958,1743583755650,-500.0,0.00049315,120]
[357021959,1743583755671,-500.0,0.00049315,120]
[357021960,1743583755691,-500.0,0.00049315,120]
[357021961,1743583755712,-500.0,0.00049315,120]
[357021962,1743583755888,-500.0,0.00049315,120]
[357021963,1743583755910,-197.82485885,0.00049315,120]
[357021964,1743583755931,-500.0,0.00049315,120]
[357021965,1743583755956,-500.0,0.00049315,120]
[357021966,1743583755977,-500.0,0.00049315,120]
[357021967,1743583755999,-500.0,0.00049315,120]
[357021968,1743583756021,-500.0,0.00049315,120]
[357021969,1743583756041,-500.0,0.00049315,120]
[357021970,1743583756061,-500.0,0.00049315,120]
[357021971,1743583756084,-500.0,0.00049315,120]
[357021972,1743583756104,-500.0,0.00049315,120]
[357021973,1743583756124,-504.08666024,0.00049315,120]
[357021974,1743583756144,-500.0,0.00049315,120]
[357021975,1743583756165,-500.0,0.00049315,120]
[357021976,1743583756185,-500.0,0.00049315,120]
[357021977,1743583756205,-500.0,0.00049315,120]
[357021978,1743583756225,-508.18842023,0.00049315,120]
[357021979,1743583756245,-378.57132996,0.00049315,120]
[357021980,1743583756266,-500.0,0.00049315,120]
[357021981,1743583756285,-500.0,0.00049315,120]
[357021982,1743583756305,-513.143381,0.00049315,120]
[357021983,1743583756324,-500.0,0.00049315,120]
[357021984,1743583756347,-502.25545828,0.00049315,120]
[357021985,1743583756368,-500.0,0.00049315,120]
[357021986,1743583756387,-506.97611071,0.00049315,120]
[357021987,1743583756407,-521.62647859,0.00049315,120]
[357021988,1743583756427,-514.55924968,0.00049315,120]
[357021989,1743583756447,-500.0,0.00049315,120]
[357021990,1743583756468,-500.0,0.00049315,120]
[357021991,1743583756488,-500.0,0.00049315,120]
[357021992,1743583756508,-503.19181946,0.00049315,120]
[357021993,1743583756528,-500.0,0.00049315,120]
[357021994,1743583756547,-219.1090095,0.00049315,120]
[357021995,1743583756566,-505.47657352,0.00049315,120]
[357021996,1743583756586,-500.0,0.00049315,120]
[357021997,1743583756606,-500.0,0.00049315,120]
[357021998,1743583756625,-500.0,0.00049315,120]
[357021999,1743583756645,-500.0,0.00049315,120]
[357022000,1743583756665,-500.0,0.00049315,120]
[357022001,1743583756684,-500.0,0.00049315,120]
[357022002,1743583756703,-513.10685925,0.00049315,120]
[357022003,1743583756723,-508.24596883,0.00049315,120]
[357022004,1743583756747,-511.6833248,0.00049315,120]
[357022005,1743583756766,-500.0,0.00049315,120]
[357022006,1743583756785,-539.16389472,0.00049315,120]
[357022007,1743583756805,-508.83214068,0.00049315,120]
[357022008,1743583756825,-503.20234496,0.00049315,120]
[357022009,1743583756845,-500.0,0.00049315,120]
[357022010,1743583756865,-524.06264574,0.00049315,120]
[357022011,1743583756884,-500.0,0.00049315,120]
[357022012,1743583756904,-501.32306005,0.00049315,120]
[357022013,1743583756924,-504.41685332,0.00049315,120]
[357022014,1743583756946,-504.15954812,0.00049315,120]
[357022015,1743583756969,-506.42268087,0.00049315,120]
[357022016,1743583756989,-500.0,0.00049315,120]
[357022017,1743583757011,-496.22943066,0.00049315,120]
[357022018,1743583757034,-500.0,0.00049315,120]
[357022019,1743583757055,-500.0,0.00049315,120]
[357022020,1743583757075,-522.04557475,0.00049315,120]
[357022021,1743583757095,-500.43,0.00049315,120]
[357022022,1743583757116,-500.0,0.00049315,120]
[357022023,1743583757136,-500.0,0.00049315,120]
[357022024,1743583757156,-636.11737943,0.00049315,120]
[357022025,1743583757177,-500.0,0.00049315,120]
[357022026,1743583757198,-501.79994156,0.00049315,120]
[357022027,1743583757219,-501.73473159,0.00049315,120]
[357022028,1743583757239,-500.0,0.00049315,120]
[357022029,1743583757260,-500.0,0.00049315,120]
[357022030,1743583757283,-509.12303624,0.00049315,120]
[357022031,1743583757304,-501.87061577,0.00049315,120]
[357022032,1743583757324,-500.0,0.00049315,120]
[357022033,1743583757345,-504.7517502,0.00049315,120]
[357022034,1743583757366,-423.63112721,0.00049315,120]
[357022035,1743583759810,500.0,0.000455,120]
[357022036,1743583764204,-76.36887279,0.00049315,120]
[357022037,1743583764224,-500.0,0.00049315,120]
[357022038,1743583764245,-500.0,0.00049315,120]
[357022039,1743583764267,-500.89118027,0.00049315,120]
[357022040,1743583764287,-500.0,0.00049315,120]
[357022041,1743583764307,-500.0,0.00049315,120]
[357022042,1743583764328,-500.0,0.00049315,120]
[357022043,1743583764349,-500.0,0.00049315,120]
[357022044,1743583764369,-500.96110028,0.00049315,120]
[357022045,1743583764388,-226.99699248,0.00049315,120]
[357022046,1743583764408,-500.0,0.00049315,120]
[357022047,1743583764427,-500.0,0.00049315,120]
[357022048,1743583764447,-502.34106131,0.00049315,120]
[357022049,1743583764467,-500.0,0.00049315,120]
[357022050,1743583764488,-500.0,0.00049315,120]
[357022051,1743583764510,-502.61520482,0.00049315,120]
[357022052,1743583764530,-537.8402233,0.00049315,120]
[357022053,1743583764550,-161.70372475,0.00049315,120]
[357022054,1743583771103,-343.16349001,0.00049315,120]
[357022055,1743583771123,-507.16608145,0.00049315,120]
[357022056,1743583771144,-503.56887381,0.00049315,120]
[357022057,1743583771165,-500.0,0.00049315,120]
[357022058,1743583771189,-500.0,0.00049315,120]
[357022059,1743583771211,-510.43946927,0.00049315,120]
[357022060,1743583771235,-501.61752373,0.00049315,120]
[357022061,1743583771255,-573.52903489,0.00049315,120]
[357022062,1743583771276,-503.66091755,0.00049315,120]
[357022063,1743583771297,-507.14462302,0.00049315,120]
[357022064,1743583771319,-514.75067879,0.00049315,120]
[357022065,1743583771340,-512.3619742,0.00049315,120]
[357022066,1743583771360,-500.0,0.00049315,120]
[357022067,1743583771380,-500.0,0.00049315,120]
[357022068,1743583771400,-506.72893341,0.00049315,120]
[357022069,1743583771420,-500.0,0.00049315,120]
[357022070,1743583771440,-512.20766266,0.00049315,120]
[357022071,1743583771461,-500.0,0.00049315,120]
[357022072,1743583771480,-597.44144826,0.00049315,90]
[357022073,1743583771500,-500.0,0.00049315,120]
[357022074,1743583771520,-500.0,0.00049315,120]
[357022075,1743583771540,-500.0,0.00049315,120]
[357022076,1743583771560,-564.95362073,0.00049315,120]
[357022077,1743583771580,-500.0,0.00049315,120]
[357022078,1743583771600,-505.24589663,0.00049315,120]
[357022079,1743583771621,-500.0,0.00049315,120]
[357022080,1743583771641,-500.0,0.00049315,120]
[357022081,1743583771662,-500.0,0.00049315,120]
[357022082,1743583771682,-512.10081964,0.00049315,120]
[357022083,1743583771703,-502.35308487,0.00049315,120]
[357022084,1743583771723,-500.0,0.00049315,120]
[357022085,1743583771744,-500.89332443,0.00049315,120]
[357022086,1743583771766,-500.0,0.00049315,120]
[357022087,1743583771787,-517.59159615,0.00049315,120]
[357022088,1743583771807,-517.81884541,0.00049315,120]
[357022089,1743583771827,-518.37672789,0.00049315,120]
[357022090,1743583771846,-507.38743774,0.00049315,120]
[357022091,1743583771871,-500.0,0.00049315,120]
[357022092,1743583771894,-544.93582825,0.00049315,120]
[357022093,1743583772023,-505.35651393,0.00049315,120]
[357022094,1743583772049,-500.0,0.00049315,120]
[357022095,1743583772069,-504.05379478,0.00049315,120]
[357022096,1743583772090,-139.86687604,0.00049315,120]
[357022097,1743583772140,-360.13312396,0.00049315,120]
[357022098,1743583772160,-503.89423202,0.00049315,120]
[357022099,1743583772182,-505.57690474,0.00049315,120]
[357022100,1743583772204,-500.0,0.00049315,120]
[357022101,1743583772228,-500.0,0.00049315,120]
[357022102,1743583772248,-505.42691173,0.00049315,7]
[357022103,1743583772269,-504.56358034,0.00049315,120]
[357022104,1743583772289,-500.0,0.00049315,120]
[357022105,1743583772309,-500.0,0.00049315,120]
[357022106,1743583772329,-264.04425539,0.00049315,120]
[357022107,1743583772350,-519.63771871,0.00049315,120]
[357022108,1743583772371,-500.0,0.00049315,120]
[357022109,1743583772392,-500.0,0.00049315,120]
[357022110,1743583772412,-500.0,0.00049315,120]
[357022111,1743583772433,-504.25628583,0.00049315,120]
[357022112,1743583772454,-500.0,0.00049315,120]
[357022113,1743583772475,-500.0,0.00049315,120]
[357022114,1743583772496,-500.0,0.00049315,120]
[357022115,1743583772517,-500.0,0.00049315,120]
[357022116,1743583772537,-500.0,0.00049315,120]
[357022117,1743583772557,-635.12,0.00049315,120]
[357022118,1743583772577,-500.0,0.00049315,120]
[357022119,1743583772597,-500.0,0.00049315,120]
[357022120,1743583772616,-500.0,0.00049315,120]
[357022121,1743583772636,-500.0,0.00049315,120]
[357022122,1743583772656,-500.0,0.00049315,120]
[357022123,1743583772676,-500.0,0.00049315,120]
[357022124,1743583772696,-500.0,0.00049315,120]
[357022125,1743583772716,-500.0,0.00049315,120]
[357022126,1743583772736,-500.0,0.00049315,120]
[357022127,1743583772756,-500.0,0.00049315,120]
[357022128,1743583772777,-525.91890257,0.00049315,120]
[357022129,1743583772797,-540.69095304,0.00049315,120]
[357022130,1743583772816,-516.23715627,0.00049315,120]
[357022131,1743583772836,-555.39248885,0.00049315,120]
[357022132,1743583772855,-533.5585631,0.00049315,120]
[357022133,1743583772876,-450.59436655,0.00049315,120]
[357022134,1743583801269,264.0,0.00034491,2]
[357022135,1743583801295,1760.0,0.00047503,2]
[357022136,1743583801841,350.0,0.00037941,12]
[357022137,1743583801914,350.0,0.00034492,12]
[357022138,1743583802333,500.0,0.00046525,120]
[357022139,1743583809439,500.0,0.0004755,120]
[357022140,1743583815870,500.0,0.00048525,120]
[357022142,1743583831853,-175.13904836,0.00034492,30]
[357022143,1743583831863,-435.10085126,0.00034492,120]
[357022144,1743583831872,-209.56621304,0.00034492,2]
[357022145,1743583831902,-1077.94,0.00034492,2]
[357022146,1743583831958,-150.02549041,0.00034492,2]
[357022147,1743583831967,-714.97450959,0.00034492,120]
[357022148,1743583831983,-43.22419497,0.00034492,120]
[357022149,1743583831993,-379.38107587,0.00034492,7]
[357022150,1743583832204,-511.13858225,0.00034492,7]
[357022151,1743583832216,-6940.65118567,0.00034492,7]
[357022153,1743583832228,-7261.53760378,0.00034492,7]
[357022154,1743583832237,-152.3,0.00048775,2]
[357022156,1743583832247,-49.40563345,0.00049315,120]
[357022158,1743583832256,-500.0,0.00049315,120]
[357022160,1743583832266,-500.0,0.00049315,120]
[357022163,1743583832276,-500.0,0.00049315,120]
[357022165,1743583832286,-500.0,0.00049315,120]
[357022167,1743583832295,-500.0,0.00049315,120]
[357022169,1743583832305,-500.0,0.00049315,120]
[357022171,1743583832314,-332.88,0.00049315,120]
[357022173,1743583832324,-500.0,0.00049315,12]
[357022174,1743583832333,-500.0,0.00049315,120]
[357022176,1743583832343,-500.0,0.00049315,120]
[357022178,1743583832353,-150.0,0.00049315,120]
[357022179,1743583832363,-500.0,0.00049315,30]
[357022180,1743583832372,-500.0,0.00049315,120]
[357022181,1743583832382,-648.26,0.00049315,120]
[357022182,1743583832392,-500.0,0.00049315,120]
[357022183,1743583832401,-1498.86,0.00049315,120]
[357022184,1743583832411,-500.0,0.00049315,120]
[357022185,1743583832420,-585.47748089,0.00049315,120]
[357022186,1743583832430,-332.57246336,0.00049315,120]
[357022187,1743583832440,-500.0,0.00049315,120]
[357022188,1743583832449,-500.0,0.00049315,120]
[357022189,1743583832459,-500.0,0.00049315,120]
[357022190,1743583832468,-628.64,0.00049315,7]
[357022191,1743583832477,-500.0,0.00049315,120]
[357022192,1743583832487,-500.0,0.00049315,120]
[357022193,1743583832496,-500.0,0.00049315,120]
[357022194,1743583832506,-590.58,0.00049315,120]
[357022195,1743583832515,-500.0,0.00049315,120]
[357022196,1743583832525,-500.0,0.00049315,120]
[357022197,1743583832534,-500.0,0.00049315,120]
[357022198,1743583832543,-503.4170553,0.00049315,120]
[357022199,1743583832553,-600.61744374,0.00049315,120]
[357022200,1743583832562,-500.0,0.00049315,120]
[357022201,1743583832571,-500.0,0.00049315,120]
[357022202,1743583832580,-502.64796963,0.00049315,120]
[357022203,1743583832589,-500.0,0.00049315,120]
[357022204,1743583832599,-500.0,0.00049315,120]
[357022205,1743583832608,-500.0,0.00049315,120]
[357022206,1743583832617,-500.0,0.00049315,120]
[357022207,1743583832627,-500.0,0.00049315,30]
[357022208,1743583832636,-500.0,0.00049315,120]
[357022209,1743583832646,-5791.66,0.00049315,120]
[357022210,1743583832655,-503.59263095,0.00049315,120]
[357022211,1743583832665,-499.26024,0.00049315,120]
[357022212,1743583832674,-371.24733295,0.00049315,120]
[357022213,1743583832683,-503.33757291,0.00049315,120]
[357022214,1743583832693,-548.33169519,0.00049315,120]
[357022215,1743583832702,-500.0,0.00049315,120]
[357022216,1743583832711,-500.0,0.00049315,120]
[357022217,1743583832720,-502.10277762,0.00049315,120]
[357022218,1743583832729,-500.0,0.00049315,120]
[357022219,1743583832738,-500.0,0.00049315,120]
[357022220,1743583832747,-500.0,0.00049315,120]
[357022221,1743583832756,-523.63514049,0.00049315,120]
[357022222,1743583832765,-500.0,0.00049315,120]
[357022223,1743583832775,-500.0,0.00049315,120]
[357022224,1743583832786,-500.0,0.00049315,120]
[357022225,1743583832796,-500.0,0.00049315,120]
[357022226,1743583832807,-305.82,0.00049369,2]
[357022227,1743583832816,-1271.9659,0.00049489,2]
[357022228,1743583832825,-622.98995287,0.000495,5]
[357022229,1743583832836,-500.0,0.0004958,10]
[357022230,1743583832846,-471.53434395,0.00049589,120]
[357022231,1743583832856,-511.85141411,0.00049589,120]
[357022232,1743583832865,-510.69769551,0.00049589,120]
[357022233,1743583832874,-500.0,0.00049589,120]
[357022234,1743583832883,-505.90307829,0.00049589,120]
[357022235,1743583832894,-564.82591991,0.00049589,120]
[357022236,1743583832905,-513.01863951,0.00049589,120]
[357022237,1743583832914,-500.0,0.00049589,120]
[357022238,1743583832924,-343.77444059,0.00049589,120]
[357022239,1743583832934,-523.90493612,0.00049589,120]
[357022240,1743583832945,-496.19214972,0.00049589,120]
[357022241,1743583832955,-534.25805171,0.00049589,120]
[357022242,1743583832965,-507.65791033,0.00049589,120]
[357022243,1743583832976,-507.96067635,0.00049589,120]
[357022244,1743583832990,-500.0,0.00049589,120]
[357022245,1743583832999,-500.0,0.00049589,120]
[357022246,1743583833009,-507.40701466,0.00049589,120]
[357022247,1743583833018,-604.51982588,0.00049589,120]
[357022248,1743583833028,-500.0,0.00049589,120]
[357022249,1743583833037,-500.0,0.00049589,120]
[357022250,1743583833047,-509.60989768,0.00049589,120]
[357022251,1743583833057,-502.15702251,0.00049589,120]
[357022252,1743583833067,-500.0,0.00049589,120]
[357022253,1743583833077,-500.0,0.00049589,120]
[357022254,1743583833086,-525.56808597,0.00049589,120]
[357022255,1743583833095,-500.0,0.00049589,120]
[357022256,1743583833106,-500.0,0.00049589,120]
[357022257,1743583833116,-506.25191451,0.00049589,120]
[357022258,1743583833126,-500.0,0.00049589,120]
[357022259,1743583833135,-500.0,0.00049589,120]
[357022260,1743583833145,-508.36408395,0.00049589,120]
[357022261,1743583833156,-502.76366691,0.00049589,120]
[357022262,1743583833165,-638.77616453,0.00049589,120]
[357022263,1743583833175,-511.07113974,0.00049589,120]
[357022264,1743583833184,-500.0,0.00049589,120]
[357022265,1743583833194,-500.0,0.00049589,120]
[357022266,1743583833204,-513.04886005,0.00049589,120]
[357022267,1743583833213,-546.99692111,0.00049589,120]
[357022268,1743583833223,-500.0,0.00049589,120]
[357022269,1743583833232,-514.73498167,0.00049589,120]
[357022270,1743583833241,-500.0,0.00049589,120]
[357022271,1743583833251,-513.68514216,0.00049589,120]
[357022272,1743583833260,-500.0,0.00049589,120]
[357022273,1743583833270,-500.0,0.00049589,120]
[357022274,1743583833279,-508.65161576,0.00049589,120]
[357022275,1743583833289,-512.09186257,0.00049589,120]
[357022276,1743583833298,-500.0,0.00049589,120]
[357022277,1743583833307,-500.00754576,0.00049589,120]
[357022278,1743583833317,-349.23107435,0.00049589,120]
[357022279,1743583833327,-500.0,0.00049589,120]
[357022280,1743583833336,-500.0,0.00049589,120]
[357022281,1743583833346,-500.0,0.00049589,120]
[357022282,1743583833356,-515.86536662,0.00049589,120]
[357022283,1743583833365,-500.0,0.00049589,120]
[357022284,1743583833374,-500.0,0.00049589,120]
[357022285,1743583833384,-509.54419725,0.00049589,120]
[357022286,1743583833393,-500.0,0.00049589,12]
[357022287,1743583833402,-500.0,0.00049589,120]
[357022288,1743583833412,-150.0,0.00049589,120]
[357022289,1743583833422,-500.0,0.00049589,30]
[357022290,1743583833432,-500.0,0.00049589,120]
[357022291,1743583833442,-648.26,0.00049589,120]
[357022292,1743583833452,-500.0,0.00049589,120]
[357022293,1743583833461,-1498.86,0.00049589,120]
[357022294,1743583833471,-500.0,0.00049589,120]
[357022295,1743583833481,-500.0,0.00049589,120]
[357022296,1743583833491,-500.0,0.00049589,120]
[357022297,1743583833500,-628.64,0.00049589,7]
[357022298,1743583833509,-500.0,0.00049589,120]
[357022299,1743583833519,-514.63,0.00049589,120]
[357022300,1743583833528,-590.58,0.00049589,120]
[357022301,1743583833537,-500.0,0.00049589,120]
[357022302,1743583833547,-500.0,0.00049589,120]
[357022303,1743583833556,-500.0,0.00049589,120]
[357022304,1743583833567,-500.0,0.00049589,120]
[357022305,1743583833577,-500.0,0.00049589,120]
[357022306,1743583833587,-500.0,0.00049589,120]
[357022307,1743583833596,-500.0,0.00049589,120]
[357022308,1743583833606,-500.0,0.00049589,120]
[357022309,1743583833615,-500.0,0.00049589,30]
[357022310,1743583833625,-500.0,0.00049589,120]
[357022311,1743583833636,-5791.66,0.00049589,120]
[357022312,1743583833645,-500.0,0.00049589,120]
[357022313,1743583833654,-500.0,0.00049589,120]
[357022314,1743583833663,-500.0,0.00049589,120]
[357022315,1743583833672,-500.0,0.00049589,120]
[357022316,1743583833682,-181.78,0.00049678,120]
[357022317,1743583833691,-501.89206005,0.00049763,15]
[357022318,1743583833701,-300.0,0.000498,18]
[357022319,1743583833710,-12131.7572883,0.00049853,4]
[357022320,1743583833719,-513.59066639,0.00049863,120]
[357022321,1743583833729,-525.64312968,0.00049863,120]
[357022322,1743583833738,-500.0,0.00049863,120]
[357022323,1743583833747,-500.0,0.00049863,120]
[357022324,1743583833757,-514.46586826,0.00049863,120]
[357022325,1743583833766,-500.0,0.00049863,120]
[357022326,1743583833775,-168.56,0.00049863,120]
[357022327,1743583833785,-500.0,0.00049863,120]
[357022328,1743583833794,-500.0,0.00049863,120]
[357022329,1743583833804,-500.0,0.00049863,12]
[357022330,1743583833814,-500.0,0.00049863,120]
[357022331,1743583833823,-150.0,0.00049863,120]
[357022332,1743583833832,-500.0,0.00049863,30]
[357022333,1743583833841,-500.0,0.00049863,120]
[357022334,1743583833851,-648.26,0.00049863,120]
[357022335,1743583833860,-500.0,0.00049863,120]
[357022336,1743583833869,-1498.86,0.00049863,120]
[357022337,1743583833878,-500.0,0.00049863,120]
[357022338,1743583833887,-500.0,0.00049863,120]
[357022339,1743583833897,-500.0,0.00049863,120]
[357022340,1743583833906,-628.64,0.00049863,7]
[357022341,1743583833915,-500.0,0.00049863,120]
[357022342,1743583833924,-590.58,0.00049863,120]
[357022343,1743583833933,-500.0,0.00049863,120]
[357022344,1743583833942,-500.0,0.00049863,120]
[357022345,1743583833953,-500.0,0.00049863,120]
[357022346,1743583833963,-520.48008389,0.00049863,120]
[357022347,1743583833972,-500.0,0.00049863,120]
[357022348,1743583833987,-500.0,0.00049863,120]
[357022349,1743583833996,-500.0,0.00049863,120]
[357022350,1743583834006,-500.0,0.00049863,120]
[357022351,1743583834015,-500.0,0.00049863,30]
[357022352,1743583834026,-500.0,0.00049863,120]
[357022353,1743583834035,-5791.66,0.00049863,120]
[357022354,1743583834044,-500.0,0.00049863,120]
[357022355,1743583834054,-182.37991691,0.00049871,15]
[357022356,1743583834064,-178.37309668,0.00049879,38]
[357022357,1743583834073,-833.04205306,0.00049879,22]
[357022358,1743583834083,-1000.0,0.00049887,120]
[357022359,1743583834092,-600.0,0.000499,18]
[357022360,1743583834101,-157.76423562,0.000499,120]
[357022361,1743583834111,-157.76423554,0.000499,120]
[357022362,1743583834120,-157.76423554,0.000499,120]
[357022363,1743583834129,-157.76423554,0.000499,120]
[357022364,1743583834138,-157.76423554,0.000499,120]
[357022365,1743583834147,-157.76423554,0.000499,120]
[357022366,1743583834157,-157.76423554,0.000499,120]
[357022367,1743583834166,-185.94,0.0004996,2]
[357022368,1743583834175,-151.54,0.00049968,120]
[357022369,1743583834184,-185.94,0.00049968,2]
[357022370,1743583834195,-12131.7572883,0.00049969,4]
[357022371,1743583834204,-29693.32176905,0.00049969,4]
[357022383,1743583837779,-500.77691053,0.00049315,120]
[357022384,1743583837789,-500.8852884,0.00049315,120]
[357022385,1743583837798,-500.0,0.00049589,120]
[357022386,1743583837807,-500.0,0.00049863,120]
[357022387,1743583837818,-79492.49382495,0.00049969,4]
[357022388,1743583837827,-12131.7572883,0.0004997,4]
[357022389,1743583837836,-7527.14110424,0.0004997,4]
[357022390,1743583837845,-151.0,0.00049978,120]
[357022391,1743583837854,-151.0,0.00049978,120]
[357022392,1743583837864,-154.778887,0.00049978,120]
[357022393,1743583837873,-151.157564,0.00049978,120]
[357022394,1743583837886,-151.0,0.00049978,120]
[357022395,1743583837896,-151.0,0.00049978,120]
[357022396,1743583837906,-151.0,0.00049978,120]
[357022397,1743583837915,-160.457452,0.00049978,120]
[357022398,1743583837924,-151.0,0.00049978,120]
[357022399,1743583837934,-151.0,0.00049978,120]
[357022400,1743583837943,-152.032892,0.00049978,120]
[357022401,1743583837952,-266.56846589,0.00049978,59]
[357022402,1743583837961,-318076.08683068,0.00049978,59]
[357022403,1743583837984,-5020.10500927,0.00049978,59]
[357022404,1743583837995,-512.1668663,0.00049978,59]
[357022405,1743583838006,-4595.3446658,0.00049978,59]
[357022406,1743583838017,-606.4717904,0.00049978,59]
[357022436,1743583840154,-501.76157861,0.00049315,120]
[357022437,1743583840163,-305.15689143,0.00049978,59]
[357022438,1743583840199,-41.43937184,0.00049978,59]
[357022442,1743583840497,-446.7724377,0.00049978,59]
[357022444,1743583840509,-250.77874001,0.00049978,59]
[357022446,1743583840520,-1720.00173625,0.00049978,59]
[357022466,1743583842962,-500.95952095,0.00049315,120]
[357022467,1743583842972,-22736.51103568,0.00049978,59]
[357022468,1743583842983,-8468.14629447,0.00049979,4]
[357022469,1743583843015,-501.86404862,0.00049315,120]
[357022470,1743583843024,-171.95595138,0.00049979,4]
[357022471,1743583843112,-908.4075,0.00049979,4]
[357022472,1743583843122,-10670.21981017,0.00049979,4]
[357022473,1743583843135,-65575.16697892,0.00049979,4]
[357022474,1743583843147,-1804.70073874,0.00049979,4]
[357022475,1743583843181,-2023.30163569,0.00049979,4]
[357022476,1743583843192,-2324.13843046,0.00049979,4]
[357022477,1743583843307,-2174.13,0.00049979,4]
[357022478,1743583843321,-1338.26696788,0.00049979,4]
[357022479,1743583843341,-15480.68199925,0.00049979,4]
[357022480,1743583844524,-971.4300002,0.00049979,4]
[357022482,1743583846065,-182.03920546,0.00049315,120]
[357022483,1743583846084,-45802.29844084,0.00049979,4]
[357022484,1743583846094,-173124.245398,0.00049979,4]
[357022485,1743583846103,-151.0,0.00049979,120]
[357022486,1743583846112,-151.0,0.00049979,120]
[357022487,1743583846122,-168.026709,0.00049979,120]
[357022488,1743583846134,-151.0,0.00049979,120]
[357022489,1743583846144,-151.0,0.00049979,120]
[357022490,1743583846155,-151.0,0.00049979,120]
[357022491,1743583846165,-151.0,0.00049979,120]
[357022492,1743583846176,-154.881148,0.00049979,120]
[357022493,1743583846186,-151.0,0.00049979,120]
[357022494,1743583846197,-151.0,0.00049979,120]
[357022495,1743583846208,-7527.14110424,0.00049979,4]
[357022496,1743583846218,-200.12,0.0004998,120]
[357022497,1743583846228,-1864.26964086,0.0004998,4]
[357022499,1743583846241,-529.75597472,0.0004998,4]
[357022502,1743583846257,-5570.45453968,0.0004998,4]
[357022504,1743583846268,-4014.55,0.0004998,4]
[357022532,1743583868270,1460.21444946,0.00046,2]
[357022533,1743583932530,5135.95,0.00045,120]
[357022534,1743583940197,214.07,0.00047312,2]
[357022537,1743584749102,-206.04,0.00026849,2]
[357022538,1743584749128,-200.0,0.000271,2]
[357022539,1743584749150,-200.0,0.00031,2]
[357022540,1743584749170,-347.478,0.00032413,2]
[357022541,1743584749192,-206.04,0.00032646,2]
[357022542,1743584749213,-173.18023116,0.000343,2]
[357022543,1743584752088,-44.77976884,0.000343,2]
[357022544,1743584752111,-206.04,0.00038443,2]
[357022545,1743584752135,-142.93087352,0.00044239,2]
[357022546,1743584828080,-63.10912648,0.00044239,2]
[357022547,1743584828103,-1071.19815021,0.000463,2]